bitfinex/quotes_ETHUSD_20250623
["timestamp","ask_amount","ask_price","bid_price","bid_amount"]
[1750717543173,1.6166,2433.5,2432.2,4.11150398]
[1750717543373,1.6166,2434.2,2432.4,1.6375]
[1750717543558,28.751685,2434.1,2432.5,0.21875]
[1750717543756,0.05361398,2434.1,2432.9,4.11031576]
[1750717543957,10.05361398,2434.1,2432.6,4.11082792]
[1750717544278,0.05361398,2434.1,2432.8,4.11048997]
[1750717544566,0.05361398,2434.1,2433.3,4.10953864]
[1750717544754,0.05361398,2434.1,2432.6,0.55]
[1750717544960,0.05361398,2434.1,2432.7,4.11065893]
[1750717545159,0.05361398,2434.1,2432.7,10.55]
[1750717545340,0.05361398,2434.1,2433.7,4.10896791]
[1750717545540,0.05361398,2434.1,2433.3,4.1095312]
[1750717545750,0.05361398,2434.1,2433.2,4.10967878]
[1750717546079,28.751685,2434.0,2432.8,4.11038952]
[1750717546263,28.751685,2433.9,2432.4,1.6375]
[1750717546461,10.0,2433.9,2432.4,1.6375]
[1750717546663,0.05361398,2434.1,2432.6,4.11082792]
[1750717546977,0.05361398,2434.1,2432.7,0.55]
[1750717547177,0.05361398,2434.1,2433.5,4.10917131]
[1750717547487,0.005,2434.6,2432.8,0.55]
[1750717547648,0.005,2434.6,2432.9,10.55]
[1750717547842,28.751685,2434.3,2432.4,11.6375]
[1750717548038,28.751685,2434.1,2432.4,1.6375]
[1750717548247,0.005,2434.6,2432.5,10.0]
[1750717548545,0.005,2434.6,2433.6,4.10903068]
[1750717548546,13.14,2434.6,2433.6,4.10903068]
[1750717548761,0.005,2434.6,2432.9,1.5975]
[1750717548959,0.005,2434.6,2433.4,4.10934483]
[1750717549135,0.005,2434.6,2433.5,4.1092011]
[1750717549339,0.005,2434.6,2433.2,4.10981423]
[1750717549563,0.005,2434.6,2433.6,4.10898527]
[1750717549787,0.005,2434.6,2433.7,4.10895024]
[1750717549966,0.005,2434.6,2433.0,4.66015207]
[1750717550169,0.005,2434.6,2434.5,4.10761963]
[1750717550455,0.005,2434.6,2434.4,4.10764374]
[1750717550656,0.005,2434.6,2434.1,1.5975]
[1750717550995,0.005,2434.6,2433.2,13.066]
[1750717550996,0.005,2434.6,2433.0,4.11002204]
[1750717551152,0.005,2434.6,2433.3,4.10955415]
[1750717551350,0.005,2434.6,2433.1,1.5916]
[1750717551551,0.005,2434.6,2433.7,4.10894518]
[1750717551868,0.005,2434.6,2433.8,4.10870921]
[1750717552062,0.005,2434.6,2433.8,4.10878775]
[1750717552265,0.005,2434.6,2434.5,4.10761963]
[1750717552466,0.005,2434.6,2433.1,1.5916]
[1750717552991,0.005,2434.6,2433.1,5.70150777]
[1750717553151,38.751685,2434.3,2432.2,1.5297]
[1750717553356,1.6654,2434.4,2432.2,1.8729212]
[1750717553357,28.751685,2434.1,2432.2,1.8729212]
[1750717553580,28.751685,2433.9,2432.3,4.11131767]
[1750717553777,28.751685,2433.9,2432.2,1.8729212]
[1750717553778,10.55,2433.6,2432.2,0.3432212]
[1750717553978,10.55,2433.6,2432.1,0.5203]
[1750717553979,28.751685,2433.2,2432.1,0.5203]
[1750717554181,10.0,2433.2,2432.1,0.5203]
[1750717554364,28.751685,2433.1,2432.1,0.5203]
[1750717554564,28.751685,2432.9,2432.1,0.5203]
[1750717554788,10.0,2432.7,2432.1,0.5203]
[1750717554993,2.19,2432.4,2432.1,0.5203]
[1750717555289,2.19,2432.4,2431.1,0.04]
[1750717555290,28.751685,2431.8,2431.1,0.04]
[1750717555495,10.0,2431.7,2431.1,0.04]
[1750717555696,28.751685,2431.4,2431.1,0.04]
[1750717555895,38.751685,2431.2,2431.1,0.04]
[1750717556281,55.5158535,2431.2,2431.1,0.04]
[1750717556597,51.619685,2431.2,2431.1,0.04]
[1750717556904,52.169685,2431.2,2431.1,0.04]
[1750717557105,52.169685,2431.2,2430.1,0.3115288]
[1750717557106,10.0,2430.6,2430.1,0.3115288]
[1750717557323,28.751685,2430.3,2430.1,0.3115288]
[1750717557820,10.0,2430.3,2430.1,0.3115288]
[1750717557978,38.751685,2430.2,2430.1,0.3115288]
[1750717558179,28.751685,2430.0,2429.1,0.04]
[1750717558426,28.751685,2429.8,2429.1,0.38365921]
[1750717558578,22.816,2429.9,2429.1,0.38365921]
[1750717558579,12.816,2429.9,2429.1,0.38365921]
[1750717558784,11.4545,2430.1,2429.1,4.5002643]
[1750717559105,9.877,2430.1,2429.2,4.11646201]
[1750717559416,9.827,2430.1,2429.1,0.38365921]
[1750717559620,28.751685,2429.9,2429.1,0.38365921]
[1750717559824,10.0,2430.0,2429.1,0.38365921]
[1750717560281,9.827,2430.1,2429.1,0.38365921]
[1750717560828,9.827,2430.1,2429.5,4.11604686]
[1750717561034,1.6456,2431.2,2429.3,4.11641213]
[1750717561193,0.34608054,2431.1,2429.9,1.5437]
[1750717561518,41.493685,2431.0,2429.9,1.5437]
[1750717561733,28.751685,2430.8,2429.4,1.5111]
[1750717561943,12.90965885,2430.7,2429.4,1.5111]
[1750717562138,0.34490354,2430.9,2429.4,1.5111]
[1750717562283,0.34490354,2430.9,2429.7,4.11562355]
[1750717562479,0.34490354,2430.9,2430.8,4.11387197]
[1750717563180,0.34490354,2430.9,2430.1,1.5372]
[1750717563432,0.34490354,2430.9,2430.1,5.65223319]
[1750717563653,0.34490354,2430.9,2430.1,1.5372]
[1750717563936,0.34490354,2430.9,2430.6,4.1142056]
[1750717564095,0.34490354,2430.9,2430.2,4.11474614]
[1750717564301,0.34490354,2430.9,2430.8,4.11387197]
[1750717564527,0.18284575,2430.9,2430.8,4.11387197]
[1750717564863,1.6368,2432.3,2431.4,4.11283516]
[1750717565009,9.884,2432.7,2431.8,4.11218027]
[1750717565368,9.884,2432.7,2431.3,4.11292448]
[1750717565547,9.884,2432.7,2430.2,1.5517]
[1750717565548,28.751685,2431.8,2430.2,1.5517]
[1750717565856,1.6971,2431.9,2430.2,5.6664883]
[1750717565857,3.0448785,2431.7,2430.2,5.6664883]
[1750717566078,1.6971,2431.9,2430.8,4.11384709]
[1750717566215,1.6971,2431.9,2430.2,11.5517]
[1750717566407,29.09776554,2431.8,2430.2,1.5517]
[1750717566609,38.751685,2431.6,2430.2,1.5517]
[1750717566813,0.34495513,2431.5,2430.3,4.11471834]
[1750717567013,0.34495513,2431.5,2430.3,4.11469113]
[1750717567324,28.751685,2431.2,2429.7,1.5286]
[1750717567528,30.274885,2430.9,2429.1,0.04]
[1750717567823,4.22012363,2431.1,2429.1,0.04]
[1750717567824,0.34495513,2430.8,2430.5,4.11424308]
[1750717568023,0.34495513,2430.8,2429.5,1.6272]
[1750717568224,0.34495513,2430.8,2429.7,4.11561065]
[1750717568420,30.274885,2430.7,2429.1,0.04]
[1750717568627,0.34495513,2430.6,2429.1,0.04]
[1750717569226,28.751685,2430.3,2429.1,0.04]
[1750717569423,1.5305,2430.5,2429.2,4.11658159]
[1750717569628,1.5305,2430.5,2429.1,0.04]
[1750717569809,11.4155,2431.0,2430.4,4.11451522]
[1750717570013,1.5305,2431.5,2429.9,4.11525672]
[1750717570315,0.34495513,2431.4,2429.2,24.0321]
[1750717570622,0.34495513,2431.4,2430.3,4.1146807]
[1750717570960,28.751685,2431.3,2429.1,1.6209]
[1750717571277,0.34495513,2431.3,2429.1,5.73759334]
[1750717571556,10.0,2431.1,2429.1,1.6209]
[1750717571843,13.7611685,2431.0,2429.1,11.6209]
[1750717572046,1.5417,2430.8,2429.1,1.6209]
[1750717572561,10.0,2430.6,2429.1,0.04]
[1750717572715,39.301685,2430.1,2429.1,0.04]
[1750717572923,38.751685,2429.9,2429.1,0.04]
[1750717573240,0.34495513,2429.8,2429.2,4.11658159]
[1750717573454,0.34495513,2429.8,2429.1,0.04]
[1750717573455,0.34495513,2429.8,2429.3,0.41565816]
[1750717573773,0.34495513,2429.8,2429.1,0.04]
[1750717574356,1.647,2429.7,2429.1,0.04]
[1750717574670,10.0,2429.2,2429.1,0.04]
[1750717575291,38.751685,2429.2,2429.1,0.04]
[1750717575595,0.4663,2429.1,2428.1,0.04]
[1750717575738,28.751685,2428.8,2428.1,0.04]
[1750717575933,10.0,2428.7,2428.1,0.04]
[1750717576167,28.751685,2428.4,2428.1,0.04]
[1750717576374,38.751685,2428.2,2427.1,0.3155932]
[1750717576573,28.751685,2428.0,2427.1,0.3155932]
[1750717576881,10.34384651,2427.9,2427.1,0.3155932]
[1750717577226,0.4663,2428.3,2427.1,0.3155932]
[1750717577227,0.34384651,2427.8,2427.1,0.3155932]
[1750717577379,0.34384651,2427.8,2427.3,4.11969117]
[1750717577572,0.34384651,2427.8,2427.4,4.11947068]
[1750717577773,0.34384651,2427.8,2427.1,0.3155932]
[1750717578402,0.34384651,2427.8,2427.6,4.11917962]
[1750717578573,0.34384651,2427.8,2427.4,4.11951182]
[1750717578785,0.34384651,2427.8,2427.7,4.11912509]
[1750717579299,0.71912759,2427.8,2427.1,0.3155932]
[1750717579485,0.34384651,2427.8,2427.7,4.11912509]
[1750717579808,0.71912814,2427.8,2427.1,0.3155932]
[1750717580013,0.37528163,2427.7,2427.1,0.3155932]
[1750717580214,0.37528163,2427.6,2427.2,4.11986569]
[1750717580387,0.71887783,2427.5,2427.1,0.3155932]
[1750717580575,0.37528163,2427.4,2427.1,0.3155932]
[1750717580916,0.37528163,2427.3,2427.1,0.3155932]
[1750717581219,40.77451011,2427.2,2427.1,0.04743949]
[1750717581443,40.77451011,2427.2,2426.1,0.04]
[1750717581444,29.301685,2426.9,2426.1,0.04]
[1750717581581,10.0,2426.5,2426.1,0.04]
[1750717581782,38.751685,2426.2,2426.1,0.04]
[1750717581978,10.37582511,2426.2,2426.1,0.04]
[1750717582212,38.751685,2426.2,2426.1,0.04]
[1750717582463,0.37790807,2426.2,2426.1,0.04]
[1750717582582,0.37689429,2426.2,2426.1,0.04]
[1750717583128,9.892,2426.8,2426.1,0.04]
[1750717583433,0.37789316,2426.7,2426.1,0.04]
[1750717583750,0.37789316,2426.6,2426.5,4.12104605]
[1750717583878,1.5558,2428.0,2426.9,4.12035137]
[1750717584237,12.183,2428.5,2426.1,4.57790969]
[1750717584238,0.37773058,2427.9,2426.5,1.5968]
[1750717584523,0.37828817,2427.8,2427.7,4.11912509]
[1750717584678,0.37828817,2427.8,2427.4,4.11959675]
[1750717584875,11.5558,2428.5,2426.7,4.12071126]
[1750717584876,0.37825038,2427.7,2426.7,4.12071126]
[1750717585116,0.37825038,2427.6,2427.5,4.11946446]
[1750717585338,1.5558,2428.5,2426.8,0.41207113]
[1750717585492,0.37839024,2428.4,2426.9,0.55]
[1750717585827,28.751685,2428.2,2426.5,1.5968]
[1750717586039,10.0,2427.9,2426.5,1.5968]
[1750717586188,10.0,2427.9,2426.8,4.12062403]
[1750717586526,0.37850995,2427.8,2426.5,1.5968]
[1750717586694,0.37850995,2427.7,2426.5,1.5968]
[1750717587022,0.37850995,2427.6,2427.0,4.12027914]
[1750717587222,0.37850995,2427.5,2426.1,0.04]
[1750717587542,2.03221284,2427.4,2426.5,4.12112096]
[1750717587722,2.03221284,2427.4,2426.1,4.16180257]
[1750717587723,0.37851284,2427.3,2426.1,4.16180257]
[1750717587879,0.37851284,2427.2,2426.2,4.12167175]
[1750717588082,0.37851284,2427.1,2426.1,0.04]
[1750717588281,0.37851284,2427.0,2426.6,4.12090235]
[1750717588503,1.6537,2427.4,2426.1,4.16180103]
[1750717588504,0.37851284,2426.9,2426.1,0.04]
[1750717588706,0.37851284,2426.8,2426.7,4.12082251]
[1750717588921,0.37851284,2426.8,2426.1,0.04]
[1750717589131,0.3783844,2426.7,2426.1,0.04]
[1750717589331,11.6537,2427.4,2426.1,0.1107727]
[1750717589332,0.3783844,2426.6,2426.1,0.1107727]
[1750717589532,1.6537,2427.4,2426.6,4.12089758]
[1750717589830,1.6537,2427.4,2426.1,0.1107727]
[1750717590055,9.898,2427.5,2426.3,4.12150187]
[1750717590192,1.36783514,2427.4,2426.3,0.0707727]
[1750717590397,0.9898,2427.4,2426.3,0.0707727]
[1750717590596,0.37807745,2427.3,2426.4,4.12123952]
[1750717590829,0.37808797,2427.2,2426.3,0.0707727]
[1750717590996,0.37808797,2427.1,2426.3,0.0707727]
[1750717591202,1.5224,2427.9,2426.5,1.5972]
[1750717591412,0.37795607,2427.8,2426.5,11.5972]
[1750717591751,9.898,2428.6,2427.6,4.11929477]
[1750717591752,0.37795607,2427.7,2427.6,4.11929477]
[1750717592257,0.37795607,2427.7,2427.6,4.66929477]
[1750717592408,9.898,2428.6,2427.5,4.1194352]
[1750717592608,9.898,2428.6,2427.7,4.11910038]
[1750717592822,28.751685,2428.4,2427.0,1.644]
[1750717593040,0.37810497,2428.3,2427.4,4.11960569]
[1750717593239,0.37810497,2428.3,2427.4,4.11958922]
[1750717593445,0.37810497,2428.2,2427.0,1.644]
[1750717593631,9.898,2428.6,2427.0,1.644]
[1750717593632,0.37810497,2428.1,2427.0,1.644]
[1750717593834,28.751685,2428.4,2427.1,4.12014338]
[1750717594037,9.898,2428.6,2427.9,4.1186997]
[1750717594038,0.37890637,2428.3,2427.9,4.1186997]
[1750717594335,9.898,2428.6,2427.5,4.11932183]
[1750717594510,28.751685,2428.4,2427.3,4.11971032]
[1750717594717,9.898,2428.6,2427.0,5.76422842]
[1750717594718,0.37886792,2428.3,2427.0,5.76422842]
[1750717594918,9.898,2428.6,2427.9,0.010296]
[1750717595161,0.37904394,2428.5,2427.9,4.1289812]
[1750717595363,0.37904394,2428.5,2427.9,0.010296]
[1750717595870,0.37904394,2428.5,2428.0,4.11861614]
[1750717596071,0.04,2428.9,2427.9,0.010296]
[1750717596446,0.38001827,2428.8,2427.9,0.010296]
[1750717596634,0.38001827,2428.7,2428.6,4.11759861]
[1750717596836,8.09587408,2430.6,2428.2,4.11827691]
[1750717596837,8.09587408,2431.4,2429.8,4.11556506]
[1750717597036,1.5628,2431.1,2429.8,4.11556506]
[1750717597253,1.5606,2431.6,2430.8,4.11387197]
[1750717597451,1.5606,2431.6,2429.8,1.5826]
[1750717597951,1.5606,2431.6,2430.3,4.11463522]
[1750717598272,1.5606,2431.6,2430.6,4.11412284]
[1750717598633,1.5606,2431.6,2430.7,4.11398097]
[1750717598972,1.5606,2431.6,2430.8,4.11387197]
[1750717599173,0.045,2431.9,2430.8,4.11387197]
[1750717599174,0.045,2431.9,2430.8,4.93666293]
[1750717599374,0.045,2431.9,2430.8,6.29117197]
[1750717599543,0.045,2431.9,2430.8,1.6273]
[1750717599875,1.6202,2431.8,2430.3,1.6273]
[1750717600080,0.045,2431.9,2431.7,4.11234857]
[1750717600260,0.045,2431.9,2431.4,4.11272318]
[1750717600573,0.045,2431.9,2430.3,1.6273]
[1750717600874,0.045,2431.9,2430.4,14.11450509]
[1750717601039,28.751685,2431.8,2430.7,4.11389423]
[1750717601390,0.045,2431.9,2430.8,4.11380247]
[1750717601582,0.045,2431.9,2430.4,0.55]
[1750717601886,0.045,2431.9,2431.8,4.11218027]
[1750717602766,0.045,2431.9,2431.1,4.11336432]
[1750717603069,0.045,2431.9,2431.8,4.11218027]
[1750717603780,0.04,2432.9,2432.4,4.11104154]
[1750717603980,0.04,2432.9,2431.8,1.5275]
[1750717604368,28.751685,2432.7,2430.5,4.11437975]
[1750717604597,28.751685,2432.7,2430.8,4.11375028]
[1750717604598,10.55,2432.5,2430.8,4.11375028]
[1750717604803,28.751685,2432.2,2430.4,1.5275]
[1750717605000,1.6421,2432.1,2430.5,4.11428015]
[1750717605201,28.751685,2432.0,2430.4,5.6420213]
[1750717605433,1.6421,2432.1,2429.9,1.5275]
[1750717605434,10.0,2431.7,2429.9,1.5275]
[1750717605564,10.55,2431.4,2429.4,1.6118]
[1750717605894,10.0,2431.0,2429.6,4.11576159]
[1750717606125,15.64379481,2431.3,2430.1,0.04]
[1750717606417,28.751685,2431.2,2430.1,0.04]
[1750717606857,12.95339853,2434.4,2430.1,0.04]
[1750717606858,1.5934,2432.8,2431.0,4.11353352]
[1750717607057,1.5934,2432.8,2432.0,0.116959]
[1750717607280,1.5934,2432.8,2431.2,4.11311314]
[1750717607505,28.634726,2432.7,2430.8,5.62583572]
[1750717607715,38.634726,2432.5,2431.0,4.11353352]
[1750717607890,28.634726,2432.5,2431.3,4.11292783]
[1750717608078,11.811,2433.1,2431.1,4.11320295]
[1750717608274,28.634726,2433.0,2431.5,0.116959]
[1750717608476,9.889,2433.6,2431.3,10.0]
[1750717608801,0.005,2434.6,2432.1,0.55]
[1750717608971,28.634726,2433.8,2432.6,4.11070329]
[1750717609177,0.005,2434.6,2432.0,1.6407]
[1750717609378,28.634726,2433.8,2432.7,4.11061818]
[1750717609573,0.005,2434.6,2432.6,4.11079756]
[1750717609808,0.37515605,2434.4,2432.2,0.116959]
[1750717609972,0.005,2434.6,2433.2,4.1096851]
[1750717610181,0.005,2434.6,2432.3,10.0]
[1750717610386,0.005,2434.6,2433.4,4.10936139]
[1750717610586,0.005,2434.6,2432.2,10.0]
[1750717610587,10.005,2434.6,2432.2,10.0]
[1750717610897,10.005,2434.6,2432.8,4.11041127]
[1750717610898,28.634726,2433.8,2432.8,4.11041127]
[1750717611121,0.1957,2433.7,2432.8,4.11033743]
[1750717611346,0.1957,2433.7,2432.0,12.1907]
[1750717611484,0.1957,2433.7,2432.1,4.11167303]
[1750717611689,0.1957,2433.7,2432.1,0.55]
[1750717611923,0.1957,2433.7,2433.1,4.10986785]
[1750717612225,0.1957,2433.7,2432.4,4.11110748]
[1750717612428,0.1957,2433.7,2432.8,4.11036636]
[1750717612630,0.1957,2433.7,2432.2,5.330514]
[1750717612791,0.1957,2433.7,2432.3,4.11133495]
[1750717613111,0.1957,2433.7,2432.0,1.6407]
[1750717613312,28.634726,2433.6,2432.7,4.11064913]
[1750717613510,28.634726,2433.6,2432.0,1.6407]
[1750717613511,28.634726,2433.6,2432.5,4.11085438]
[1750717613686,28.634726,2433.6,2432.6,4.11072431]
[1750717613890,2.8830426,2433.6,2432.5,4.11089193]
[1750717614138,28.634726,2433.6,2432.0,1.6407]
[1750717614295,28.634726,2433.6,2432.2,4.11134168]
[1750717614490,28.634726,2433.6,2432.0,1.6407]
[1750717614691,28.634726,2433.4,2432.1,4.11167263]
[1750717614897,28.634726,2433.4,2432.0,4.11174508]
[1750717615097,3.8634726,2433.3,2432.0,4.11174508]
[1750717615298,29.184726,2433.5,2431.5,1.6274]
[1750717615490,10.0,2433.3,2431.6,4.1125185]
[1750717615694,28.634726,2433.2,2431.8,4.11205852]
[1750717616030,28.634726,2432.9,2431.2,4.11308844]
[1750717616231,0.1957,2433.0,2431.6,4.11238347]
[1750717616433,0.1957,2433.0,2431.9,4.11191199]
[1750717616738,28.634726,2432.9,2431.5,4.11253359]
[1750717617031,28.634726,2432.7,2431.0,1.6274]
[1750717617332,28.634726,2432.7,2431.2,4.11310285]
[1750717617541,28.634726,2432.7,2431.3,4.11302595]
[1750717617764,28.634726,2432.9,2431.1,4.15328341]
[1750717617909,0.1957,2433.0,2432.3,4.11124544]
[1750717618109,0.1957,2433.0,2432.5,4.11088602]
[1750717618408,0.1957,2433.0,2431.8,4.11208365]
[1750717619063,0.1957,2433.0,2431.8,4.11218027]
[1750717619204,0.1957,2433.5,2432.0,4.1118421]
[1750717619405,0.1957,2433.5,2432.1,4.11167303]
[1750717619621,0.1957,2433.5,2433.0,4.11014408]
[1750717619818,0.1957,2433.5,2432.0,10.0]
[1750717620031,0.1957,2433.5,2432.1,1.3037018]
[1750717620453,28.634726,2433.4,2431.3,4.11302595]
[1750717620644,10.55,2433.1,2431.2,1.5251]
[1750717620830,0.55,2432.7,2430.8,0.4138422]
[1750717621087,28.634726,2432.4,2430.8,4.1138446]
[1750717621381,28.634726,2432.4,2430.4,5.6395257]
[1750717621382,28.634726,2432.4,2430.6,4.52301561]
[1750717621685,0.1957,2432.0,2431.0,4.11346099]
[1750717621849,0.1957,2432.0,2430.9,4.11364089]
[1750717622167,10.7457,2431.6,2430.1,0.04]
[1750717622388,0.55,2431.2,2430.1,0.04]
[1750717622593,28.634726,2431.0,2430.1,0.04]
[1750717622766,11.388,2430.9,2430.1,0.04]
[1750717623073,28.634726,2430.7,2430.1,0.04]
[1750717623236,10.0,2430.4,2430.1,0.04]
[1750717623435,10.0,2431.2,2430.1,0.04]
[1750717623635,0.55,2431.0,2430.1,0.04]
[1750717623860,0.1557,2431.1,2430.1,0.04]
[1750717624065,10.0,2430.7,2430.1,0.04]
[1750717624389,10.0,2430.9,2430.1,0.04]
[1750717624564,10.0,2430.9,2430.2,4.1147706]
[1750717624879,0.1557,2431.1,2430.2,0.8269869]
[1750717625047,0.1557,2431.8,2430.1,0.04]
[1750717625269,28.634726,2431.7,2430.1,0.04]
[1750717625587,11.342,2431.6,2430.7,4.11402301]
[1750717625754,11.342,2431.6,2430.2,4.11488766]
[1750717625755,11.342,2431.6,2430.8,4.11375534]
[1750717625951,0.1557,2431.8,2430.7,4.11404122]
[1750717626149,0.1557,2431.8,2431.4,4.1128318]
[1750717626339,0.1557,2431.8,2431.5,4.11268484]
[1750717626543,0.1557,2431.8,2430.1,0.04]
[1750717626544,28.634726,2431.7,2430.1,0.04]
[1750717626750,54.0154,2432.4,2432.3,292.974216]
[1750717626953,54.0154,2432.4,2432.3,253.76134874]
[1750717627440,53.9854,2432.4,2432.3,253.76134874]
[1750717627637,58.09656592,2432.4,2432.3,253.76134874]
[1750717627868,58.09656592,2432.4,2432.3,246.3979224]
[1750717628075,53.9854,2432.4,2432.3,246.3979224]
[1750717628275,53.9594,2432.4,2432.3,246.3979224]
[1750717628440,53.9514,2432.4,2432.3,246.3979224]
[1750717628976,41.27,2432.4,2432.3,246.3979224]
[1750717629439,41.246,2432.4,2432.3,246.3979224]
[1750717629771,11.246,2432.4,2432.3,246.3979224]
[1750717630234,9.883,2432.5,2432.3,246.3979224]
[1750717631175,0.04,2432.9,2432.3,246.3979224]
[1750717631478,30.38064037,2432.8,2432.3,246.3979224]
[1750717631776,10.0,2432.5,2432.3,246.3979224]
[1750717631948,52.11864037,2432.4,2432.3,246.3979224]
[1750717632147,51.56864037,2432.4,2432.3,245.99646766]
[1750717632348,56.23014621,2432.4,2432.3,245.99646766]
[1750717632581,52.11898669,2432.4,2432.3,241.99656766]
[1750717632807,60.42506475,2432.4,2432.3,202.35990726]
[1750717633005,60.04406073,2432.4,2432.3,193.98780588]
[1750717633472,60.04406073,2432.4,2432.3,185.33781237]
[1750717633667,60.04406073,2432.4,2432.3,178.48314033]
[1750717633978,60.04406073,2432.4,2432.3,59.09145923]
[1750717633979,55.84916592,2432.4,2432.3,59.09145923]
[1750717634180,0.55,2431.8,2430.1,0.04]
[1750717634396,40.55,2431.2,2430.1,0.04]
[1750717634623,10.55,2431.0,2430.1,0.04]
[1750717634924,10.0,2430.6,2430.1,0.04]
[1750717635075,10.0,2430.4,2430.1,0.04]
[1750717635270,40.0,2430.2,2430.1,0.04]
[1750717635972,51.107,2430.2,2430.1,0.04]
[1750717636271,21.107,2430.2,2430.1,0.04]
[1750717636673,0.55,2430.1,2429.1,0.04]
[1750717636910,10.55,2429.7,2429.1,0.04]
[1750717637110,10.0,2429.5,2429.1,0.04]
[1750717637411,11.069,2429.4,2429.1,0.04]
[1750717637614,10.0,2430.1,2429.1,0.04]
[1750717637815,11.058,2430.0,2429.1,0.04]
[1750717637985,11.058,2430.2,2429.1,0.04]
[1750717638514,11.058,2430.2,2429.2,4.11658159]
[1750717638709,11.058,2430.2,2429.1,0.04]
[1750717638710,11.047,2430.6,2429.3,0.41565816]
[1750717638926,11.047,2430.6,2429.1,0.04]
[1750717638927,11.039,2430.5,2429.7,4.11570427]
[1750717639072,11.03,2430.6,2429.1,0.04]
[1750717639381,30.0,2430.3,2429.1,0.04]
[1750717639588,10.0,2430.2,2429.1,0.04]
[1750717639818,10.55,2430.5,2429.1,0.04]
[1750717640027,30.0,2430.2,2429.1,0.04]
[1750717640175,10.0,2429.9,2429.1,0.04]
[1750717640374,10.0,2429.5,2429.1,0.04]
[1750717640575,10.0,2429.3,2429.1,0.04]
[1750717640780,40.0,2429.2,2429.1,0.04]
[1750717641116,40.55,2429.2,2429.1,0.04]
[1750717641319,11.0,2429.4,2428.1,0.04]
[1750717641320,40.0,2428.9,2428.1,0.04]
[1750717641611,0.53951142,2430.2,2428.1,0.04]
[1750717641612,10.981,2428.8,2428.1,0.04]
[1750717641776,10.0,2429.1,2428.1,0.04]
[1750717642114,10.0,2429.1,2428.3,4.11807313]
[1750717642519,10.0,2429.1,2428.1,0.04]
[1750717642520,30.0,2429.0,2428.1,0.04]
[1750717642686,10.0,2428.9,2428.1,0.04]
[1750717643073,30.0,2428.8,2428.1,0.04]
[1750717643279,10.0,2428.5,2428.1,0.04]
[1750717643476,20.948,2428.7,2428.1,0.04]
[1750717643477,10.948,2428.4,2428.1,0.04]
[1750717643713,30.0,2428.3,2428.1,0.04]
[1750717644026,40.0,2428.2,2428.1,0.04]
[1750717644215,40.37918123,2428.2,2428.1,0.04]
[1750717644418,40.0,2428.2,2428.1,0.04]
[1750717644592,40.37919089,2428.2,2428.1,0.04]
[1750717644796,40.0,2428.2,2428.1,0.04]
[1750717645000,40.37860508,2428.2,2428.1,0.04]
[1750717646136,40.0,2428.2,2428.1,0.04]
[1750717647028,20.858,2428.2,2428.1,0.04]
[1750717647535,50.858,2428.2,2428.1,0.04]
[1750717647699,51.408,2428.2,2428.1,0.04]
[1750717647900,51.78625149,2428.2,2428.1,0.04]
[1750717648099,51.78626753,2428.2,2428.1,0.04]
[1750717648327,55.90454444,2428.2,2428.1,0.04]
[1750717648631,0.55,2427.7,2427.1,0.04]
[1750717648833,40.0,2427.5,2427.1,0.04]
[1750717649034,10.55,2427.2,2427.1,0.04]
[1750717649222,55.85324116,2427.2,2427.1,0.04]
[1750717649898,51.70626753,2427.2,2427.1,0.04]
[1750717650561,55.82624116,2427.2,2427.1,0.04]
[1750717650920,40.92826753,2427.2,2427.1,0.04]
[1750717651222,55.42497363,2427.2,2427.1,0.04]
[1750717651424,55.80344396,2427.2,2427.1,0.04]
[1750717651618,40.92847033,2427.2,2427.1,0.04]
[1750717651849,52.19998175,2427.2,2427.1,0.04]
[1750717652054,52.19998175,2427.2,2426.1,0.04]
[1750717652225,10.0,2426.8,2426.1,0.04]
[1750717652560,10.55,2426.3,2426.1,0.04]
[1750717652759,56.26817068,2426.2,2426.1,0.04]
[1750717653079,55.76817068,2426.2,2426.1,0.04]
[1750717653983,55.76817068,2426.2,2425.3,0.2026952]
[1750717653984,11.05,2425.9,2425.3,0.2026952]
[1750717654126,0.55,2425.4,2425.3,0.2026952]
[1750717654457,52.15033629,2425.4,2425.3,0.2026952]
[1750717654655,52.15033629,2425.4,2424.4,0.66666667]
[1750717654656,0.55,2425.2,2424.4,0.66666667]
[1750717654862,4.67456176,2424.5,2424.4,0.66666667]
[1750717655020,4.67456176,2424.5,2424.4,0.45646667]
[1750717655021,51.221,2424.5,2424.4,0.45646667]
[1750717655820,55.34556176,2424.5,2424.4,0.45646667]
[1750717656255,40.37405497,2424.5,2424.4,0.45646667]
[1750717656467,30.0,2425.9,2424.4,0.45646667]
[1750717656630,40.0,2425.7,2424.4,0.45646667]
[1750717656956,0.55,2424.8,2424.4,0.45646667]
[1750717657165,30.0,2424.5,2424.4,0.45646667]
[1750717657456,50.644,2424.5,2424.4,0.45646667]
[1750717657663,51.194,2424.5,2424.4,0.45646667]
[1750717657972,50.631,2424.5,2424.4,0.45646667]
[1750717658323,40.0,2424.5,2424.4,0.45646667]
[1750717658557,30.0,2425.7,2424.4,0.45646667]
[1750717658854,10.0,2425.1,2424.4,0.45646667]
[1750717659055,40.0,2424.9,2424.4,0.45646667]
[1750717659256,50.55,2424.5,2424.4,0.45646667]
[1750717659431,51.44597813,2424.5,2424.4,0.45646667]
[1750717659637,40.28297813,2424.5,2424.4,0.45646667]
[1750717659844,10.28297813,2424.5,2424.4,0.45646667]
[1750717660153,0.28297813,2424.5,2424.4,0.45646667]
[1750717660727,10.87497813,2424.5,2424.4,0.45646667]